bitfinex/quotes_BTCUSD_20250616
["timestamp","ask_amount","ask_price","bid_price","bid_amount"]
[1750061766323,2.01250875,107240.0,107230.0,7.88111645]
[1750061766538,2.01250875,107240.0,107230.0,7.87177626]
[1750061766748,2.01905159,107240.0,107230.0,7.73475063]
[1750061766958,2.01905162,107240.0,107230.0,7.73475063]
[1750061767180,2.0190518,107240.0,107230.0,7.67870948]
[1750061767402,2.01250875,107240.0,107230.0,7.4029596]
[1750061767638,2.01250875,107240.0,107230.0,7.39361941]
[1750061767867,2.0190527,107240.0,107230.0,7.34691845]
[1750061768104,2.01250875,107240.0,107230.0,7.28895826]
[1750061768589,2.01905288,107240.0,107230.0,7.09001423]
[1750061768819,2.01909267,107240.0,107230.0,6.84444213]
[1750061769047,2.01909267,107240.0,107230.0,6.83449213]
[1750061769275,2.01909267,107240.0,107230.0,6.81603194]
[1750061769489,1.8266527,107240.0,107230.0,6.78303194]
[1750061769741,2.01254875,107240.0,107230.0,6.77089175]
[1750061769969,2.01254875,107240.0,107230.0,6.71484241]
[1750061770199,1.82665504,107240.0,107230.0,6.71484241]
[1750061770418,2.02838603,107240.0,107230.0,6.65879307]
[1750061770640,2.0188566,107240.0,107230.0,6.58002307]
[1750061770862,2.02183654,107240.0,107230.0,6.49365373]
[1750061771292,2.02183654,107240.0,107230.0,6.43391218]
[1750061771520,2.02183654,107240.0,107230.0,6.28057063]
[1750061771741,2.02838723,107240.0,107230.0,6.16768596]
[1750061771955,2.01890063,107240.0,107230.0,5.7585566]
[1750061772160,2.01890063,107240.0,107230.0,5.7534366]
[1750061772364,2.01234995,107240.0,107230.0,5.7534366]
[1750061772595,2.02838728,107240.0,107230.0,5.7534366]
[1750061772821,1.40503973,107240.0,107230.0,5.7534366]
[1750061773045,1.3890225,107240.0,107230.0,5.7534366]
[1750061773537,1.34557346,107240.0,107230.0,5.7534366]
[1750061773779,1.78608165,107240.0,107230.0,5.7534366]
[1750061773999,1.66453339,107240.0,107230.0,5.7534366]
[1750061774229,1.80721358,107240.0,107230.0,5.7534366]
[1750061774443,1.8506625,107240.0,107230.0,5.7534366]
[1750061774665,1.8572149,107240.0,107230.0,5.7534366]
[1750061774900,1.8572165,107240.0,107230.0,5.7534366]
[1750061775141,1.8506625,107240.0,107230.0,5.7534366]
[1750061775370,1.85721757,107240.0,107230.0,5.7534366]
[1750061775597,1.8572176,107240.0,107230.0,5.7534366]
[1750061775824,1.85721791,107240.0,107230.0,5.7534366]
[1750061776066,1.85721907,107240.0,107230.0,5.7534366]
[1750061776311,1.85722024,107240.0,107230.0,5.7534366]
[1750061776535,1.8506625,107240.0,107230.0,5.7534366]
[1750061776754,1.85722087,107240.0,107230.0,5.7534366]
[1750061776961,1.80722086,107240.0,107230.0,5.7534366]
[1750061777183,1.85722071,107240.0,107230.0,5.7534366]
[1750061777634,1.85719871,107240.0,107230.0,5.7534366]
[1750061777849,1.85719893,107240.0,107230.0,5.7534366]
[1750061778284,1.8006625,107240.0,107230.0,5.7534366]
[1750061778477,1.80720009,107240.0,107230.0,5.7534366]
[1750061778726,1.8006625,107240.0,107230.0,5.7534366]
[1750061778980,1.80719994,107240.0,107230.0,5.7534366]
[1750061779196,1.8571999,107240.0,107230.0,5.7534366]
[1750061779410,1.85719991,107240.0,107230.0,5.7534366]
[1750061779850,1.85720004,107240.0,107230.0,5.7534366]
[1750061780037,1.85720041,107240.0,107230.0,5.7534366]
[1750061780291,1.8506625,107240.0,107230.0,5.7534366]
[1750061780690,1.85720069,107240.0,107230.0,5.7534366]
[1750061780908,0.87587497,107240.0,107230.0,5.7534366]
[1750061781144,1.6904635,107240.0,107230.0,5.7534366]
[1750061781347,1.6904635,107240.0,107230.0,5.8030366]
[1750061781572,1.6970021,107240.0,107230.0,5.8030366]
[1750061781987,1.76241582,107240.0,107230.0,5.8030366]
[1750061782201,1.81241582,107240.0,107230.0,5.8030366]
[1750061782411,1.81241578,107240.0,107230.0,5.8030366]
[1750061782621,1.81243777,107240.0,107230.0,5.8030366]
[1750061782754,1.76243634,107240.0,107230.0,5.8030366]
[1750061782968,1.80587716,107240.0,107230.0,5.8030366]
[1750061783164,1.75648757,107240.0,107230.0,5.8030366]
[1750061783354,1.75660686,107240.0,107230.0,5.8030366]
[1750061783557,0.80730248,107240.0,107230.0,5.8027366]
[1750061783776,0.69983582,107240.0,107230.0,5.8027366]
[1750061783995,1.00252477,107240.0,107230.0,5.82024774]
[1750061784212,0.99596773,107240.0,107230.0,5.8027366]
[1750061784423,1.00252458,107240.0,107230.0,5.8027366]
[1750061784651,1.00252452,107240.0,107230.0,5.82024705]
[1750061784871,1.09867374,107240.0,107230.0,5.82024705]
[1750061785089,1.09867323,107240.0,107230.0,5.82024712]
[1750061785309,1.09211695,107240.0,107230.0,5.9557366]
[1750061785541,1.52962088,107240.0,107230.0,5.97324705]
[1750061785749,1.48982078,107240.0,107230.0,5.9557366]
[1750061785963,1.09867391,107240.0,107230.0,5.9557366]
[1750061786172,1.09211695,107240.0,107230.0,5.9557366]
[1750061786376,1.09867402,107240.0,107230.0,5.9557366]
[1750061786817,1.09867395,107240.0,107230.0,5.9557366]
[1750061787027,0.96806126,107240.0,107230.0,5.9557366]
[1750061787232,0.97461837,107240.0,107230.0,5.9557366]
[1750061787450,0.96806126,107240.0,107230.0,5.9557366]
[1750061788997,0.93758587,107240.0,107230.0,5.98925156]
[1750061789258,0.32308409,107240.0,107230.0,6.44817528]
[1750061789491,0.35105715,107240.0,107230.0,6.60101528]
[1750061789711,0.68173262,107240.0,107230.0,6.60101528]
[1750061789933,0.34605706,107240.0,107230.0,6.60101528]
[1750061790135,0.34605706,107240.0,107230.0,6.45017528]
[1750061790343,0.67673262,107240.0,107230.0,6.60301528]
[1750061790540,0.67673262,107240.0,107230.0,6.60101528]
[1750061790752,0.68605706,107240.0,107230.0,6.60501528]
[1750061791184,0.67773262,107240.0,107230.0,6.60501528]
[1750061791625,0.67673262,107240.0,107230.0,6.60501528]
[1750061794008,0.68605715,107240.0,107230.0,6.60501528]
[1750061795694,0.68605715,107240.0,107230.0,6.60481528]
[1750061795900,0.68605767,107240.0,107230.0,6.16454262]
[1750061796136,0.69538246,107240.0,107230.0,6.17386793]
[1750061796616,0.68605828,107240.0,107230.0,6.16454278]
[1750061796913,0.68605828,107240.0,107230.0,6.01190278]
[1750061796951,0.68605828,107240.0,107230.0,6.17386818]
[1750061797127,0.68605828,107240.0,107230.0,6.16454278]
[1750061797331,0.87255585,107240.0,107230.0,6.16454287]
[1750061797606,0.87255585,107240.0,107230.0,6.01190278]
[1750061797814,0.87255585,107240.0,107230.0,6.16470278]
[1750061798033,0.8632315,107240.0,107230.0,6.01190287]
[1750061798238,0.8632315,107240.0,107230.0,6.16466287]
[1750061798443,0.8632315,107240.0,107230.0,6.17398835]
[1750061798866,0.8632315,107240.0,107230.0,6.16466287]
[1750061799081,0.8632315,107240.0,107230.0,6.17398835]
[1750061799275,0.67673393,107240.0,107230.0,6.18331375]
[1750061799703,0.8632315,107240.0,107230.0,6.1553373]
[1750061800104,0.8632315,107240.0,107230.0,6.16466296]
[1750061800316,0.85390697,107240.0,107230.0,5.8067366]
[1750061800536,0.85390697,107240.0,107230.0,5.978188]
[1750061801563,1.46792087,107240.0,107230.0,5.9595766]
[1750061801761,1.46792087,107240.0,107230.0,5.9353366]
[1750061802998,1.03697334,107240.0,107230.0,5.9353366]
[1750061803211,1.46792087,107240.0,107230.0,5.9685366]
[1750061805406,0.94082412,107240.0,107230.0,5.9685366]
[1750061805627,1.37177165,107240.0,107230.0,5.9685366]
[1750061806269,0.90102412,107240.0,107230.0,5.9685366]
[1750061806488,0.94082412,107240.0,107230.0,5.9685366]
[1750061806891,0.94082412,107240.0,107230.0,5.97786234]
[1750061807132,0.94082412,107240.0,107230.0,5.97786226]
[1750061807340,0.94082412,107240.0,107230.0,6.16437722]
[1750061807527,0.94082412,107240.0,107230.0,6.17370279]
[1750061807768,0.94082412,107240.0,107230.0,6.16437722]
[1750061808226,0.94082412,107240.0,107230.0,6.18302827]
[1750061808650,0.6674088,107240.0,107230.0,6.19235349]
[1750061808861,0.67673359,107240.0,107230.0,6.18302827]
[1750061809063,0.67673359,107240.0,107230.0,6.19235367]
[1750061809271,0.67673359,107240.0,107230.0,6.20167898]
[1750061809478,0.67673359,107240.0,107230.0,6.20167854]
[1750061809686,0.67673359,107240.0,107230.0,6.19235332]
[1750061809901,0.6276088,107240.0,107230.0,6.19235332]
[1750061810102,0.66740871,107240.0,107230.0,6.20167845]
[1750061810554,0.67673324,107240.0,107230.0,6.20167845]
[1750061811161,0.68605794,107240.0,107230.0,6.20167854]
[1750061811367,0.68605794,107240.0,107230.0,6.19235332]
[1750061811588,0.69538281,107240.0,107230.0,6.19235332]
[1750061811796,0.68605794,107240.0,107230.0,6.19235332]
[1750061811962,0.68605794,107240.0,107230.0,6.20167854]
[1750061812203,0.68605794,107240.0,107230.0,6.2016781]
[1750061812414,0.67673324,107240.0,107230.0,6.2016781]
[1750061812949,0.68605794,107240.0,107230.0,6.2016781]
[1750061813531,0.68605794,107240.0,107230.0,6.19235297]
[1750061814184,0.69538281,107240.0,107230.0,6.18302775]
[1750061814397,0.69538281,107240.0,107230.0,6.17370244]
[1750061814855,0.87255611,107240.0,107230.0,6.17370287]
[1750061815487,0.87255611,107240.0,107230.0,6.18302835]
[1750061815810,0.87255611,107240.0,107230.0,6.17370287]
[1750061816012,0.87255611,107240.0,107230.0,6.18302827]
[1750061816293,0.87255611,107240.0,107230.0,6.17370287]
[1750061816502,0.87255611,107240.0,107230.0,6.18302835]
[1750061816705,0.87255611,107240.0,107230.0,6.20053536]
[1750061816998,0.68605854,107240.0,107230.0,6.20167906]
[1750061817212,0.68605854,107240.0,107230.0,6.21918606]
[1750061817432,0.69518655,107240.0,107230.0,6.21918606]
[1750061817646,0.88168412,107240.0,107230.0,6.19120987]
[1750061817855,0.87235968,107240.0,107230.0,5.8157366]
[1750061818069,1.29398268,107240.0,107230.0,5.98592362]
[1750061818276,0.86303515,107240.0,107230.0,6.0034313]
[1750061818477,1.29398268,107240.0,107230.0,5.98592391]
[1750061818716,1.28485467,107240.0,107230.0,5.98592391]
[1750061820088,1.28485467,107240.0,107230.0,5.83324391]
[1750061820309,1.28485467,107240.0,107230.0,5.98616391]
[1750061821247,0.81410714,107240.0,107230.0,5.98616391]
[1750061821406,0.85386714,107240.0,107230.0,5.98616391]
[1750061821612,1.27548997,107240.0,107230.0,5.98616391]
[1750061823749,1.28486915,107240.0,107230.0,6.04616391]
[1750061824476,1.28479626,107240.0,107230.0,6.04616391]
[1750061826965,0.86317334,107240.0,107230.0,6.24200461]
[1750061827228,0.87249752,107240.0,107230.0,6.24200461]
[1750061827461,0.87249752,107240.0,107230.0,6.25133027]
[1750061827675,0.87249752,107240.0,107230.0,6.24200461]
[1750061828093,0.87249752,107240.0,107230.0,6.25133018]
[1750061828306,0.87249752,107240.0,107230.0,6.06481531]
[1750061828526,0.85379399,107240.0,107230.0,6.04616391]
[1750061828743,0.84446938,107240.0,107230.0,6.04616391]
[1750061828957,1.27541691,107240.0,107230.0,6.04616391]
[1750061829391,1.27541691,107240.0,107230.0,6.04612391]
[1750061830897,1.27541691,107240.0,107230.0,5.89324391]
[1750061831119,1.27541691,107240.0,107230.0,6.04612391]
[1750061831384,1.27541691,107240.0,107230.0,6.01292391]
[1750061831644,1.27541691,107240.0,107230.0,5.98782391]
[1750061832336,1.27541691,107240.0,107230.0,5.98778391]
[1750061833241,1.27541691,107240.0,107230.0,6.02098391]
[1750061834338,1.27541691,107240.0,107230.0,5.86814391]
[1750061834598,1.27541691,107240.0,107230.0,6.02098391]
[1750061835247,1.27541691,107240.0,107230.0,6.03030948]
[1750061835473,1.27541691,107240.0,107230.0,6.00250957]
[1750061835719,1.28462876,107240.0,107230.0,6.00250957]
[1750061835964,1.38087052,107240.0,107230.0,5.77494391]
[1750061836186,1.38087052,107240.0,107230.0,5.92778391]
[1750061836414,1.40324333,107240.0,107230.0,5.92778391]
[1750061837302,1.38087052,107240.0,107230.0,5.94529193]
[1750061837522,1.38087052,107240.0,107230.0,5.9452918]
[1750061837715,1.38087052,107240.0,107230.0,5.92778391]
[1750061837915,1.38087052,107240.0,107230.0,5.94529187]
[1750061838657,1.37165867,107240.0,107230.0,5.94529187]
[1750061838850,1.37165867,107240.0,107230.0,5.92778391]
[1750061839294,1.37165867,107240.0,107230.0,5.94529187]
[1750061839733,1.42704622,107240.0,107230.0,5.79244399]
[1750061839957,1.44941641,107240.0,107230.0,5.94524399]
[1750061840170,1.44941641,107240.0,107230.0,5.92774391]
[1750061840380,1.44941641,107240.0,107230.0,5.94524432]
[1750061840586,1.39402886,107240.0,107230.0,5.94524431]
[1750061840798,1.39402886,107240.0,107230.0,5.9452443]
[1750061841020,1.39402886,107240.0,107230.0,5.92774391]
[1750061841274,1.39402886,107240.0,107230.0,5.9452443]
[1750061841898,1.39402886,107240.0,107230.0,5.92774391]
[1750061842332,1.39402886,107240.0,107230.0,5.9452443]
[1750061844070,1.40349446,107240.0,107230.0,5.94524431]
[1750061844276,1.40349446,107240.0,107230.0,5.92774391]
[1750061844736,1.46639446,107240.0,107230.0,5.92774391]
[1750061844961,1.56254368,107240.0,107230.0,5.92774391]
[1750061845217,1.56254368,107240.0,107230.0,5.77494391]
[1750061845451,1.56254368,107240.0,107230.0,5.92766391]
[1750061846120,1.52278368,107240.0,107230.0,5.77494391]
[1750061846344,1.46631446,107240.0,107230.0,5.92766391]
[1750061847027,1.43451446,107240.0,107230.0,5.92766391]
[1750061847946,1.40341446,107240.0,107230.0,5.92766391]
[1750061849142,1.36373446,107240.0,107230.0,5.92766391]
[1750061849350,1.40341446,107240.0,107230.0,5.92766391]
[1750061850846,1.40341446,107240.0,107230.0,5.94516508]
[1750061851073,1.40341446,107240.0,107230.0,5.92766391]
[1750061851297,1.40341446,107240.0,107230.0,5.94516508]
[1750061851522,1.40341446,107240.0,107230.0,5.94516501]
[1750061851725,1.40341446,107240.0,107230.0,5.92766391]
[1750061852348,1.40341446,107240.0,107230.0,5.94516501]
[1750061852545,1.40341446,107240.0,107230.0,5.94517288]
[1750061852968,1.43471446,107240.0,107230.0,5.94517288]
[1750061853179,1.46501446,107240.0,107230.0,5.94517288]
[1750061853392,1.46501446,107240.0,107230.0,5.92766391]
[1750061854670,1.43471446,107240.0,107230.0,5.92766391]
[1750061855095,1.40341446,107240.0,107230.0,5.92766391]
[1750061856762,1.47531297,107240.0,107230.0,5.92766391]
[1750061857528,1.40341446,107240.0,107230.0,5.99076391]
[1750061857928,1.40341446,107240.0,107230.0,5.95766391]
[1750061858303,1.36373446,107240.0,107230.0,5.95766391]
[1750061858524,1.36373446,107240.0,107230.0,5.98776391]
[1750061858728,1.40341446,107240.0,107230.0,5.98776391]
[1750061860016,1.40341446,107240.0,107230.0,5.99708965]
[1750061860247,1.40341446,107240.0,107230.0,5.98776391]
[1750061860734,0.68971988,107240.0,107230.0,6.20225506]
[1750061860951,0.68599849,107240.0,107230.0,6.20225506]
[1750061861125,0.6859984,107240.0,107230.0,6.20225506]
[1750061861633,0.6463184,107240.0,107230.0,6.20225506]
[1750061861840,0.69532301,107240.0,107230.0,6.20225506]
[1750061862213,0.7046478,107240.0,107230.0,6.20225524]
[1750061863009,1.13559533,107240.0,107230.0,6.21158046]
[1750061863222,0.7046478,107240.0,107230.0,6.20225524]
[1750061863472,0.7046478,107240.0,107230.0,6.21158046]
[1750061863880,0.69532301,107240.0,107230.0,6.21158046]
[1750061864078,0.7046478,107240.0,107230.0,6.21158046]
[1750061864281,0.69532301,107240.0,107230.0,6.21158046]
[1750061864483,0.7046478,107240.0,107230.0,6.21158046]
[1750061864868,0.69532301,107240.0,107230.0,6.21158046]
[1750061865069,0.7046478,107240.0,107230.0,6.21158046]
[1750061865274,0.7046478,107240.0,107230.0,6.20225524]
[1750061866619,0.7046478,107240.0,107230.0,6.21158046]
[1750061866759,0.65564301,107240.0,107230.0,6.21158046]
[1750061866963,0.70464771,107240.0,107230.0,6.21158046]
[1750061867165,0.70464849,107240.0,107230.0,6.20225524]
[1750061867668,0.69532362,107240.0,107230.0,6.21158046]
[1750061868204,0.69532362,107240.0,107230.0,6.19292993]
[1750061868430,0.69532362,107240.0,107230.0,6.20225524]
[1750061868664,0.69532362,107240.0,107230.0,6.21158046]
[1750061868813,0.70464841,107240.0,107230.0,6.20225524]
[1750061869005,1.13559594,107240.0,107230.0,6.20225524]
[1750061869247,1.11694645,107240.0,107230.0,6.20225506]
[1750061869444,1.12627124,107240.0,107230.0,6.20225524]
[1750061870195,0.68599892,107240.0,107230.0,6.21158046]
[1750061870439,1.12627115,107240.0,107230.0,6.21158046]
[1750061870698,1.12627115,107240.0,107230.0,6.21130046]
[1750061871350,0.69532362,107240.0,107230.0,6.21130046]
[1750061871576,1.11694645,107240.0,107230.0,6.22062559]
[1750061871881,1.11694645,107240.0,107230.0,6.21130046]
[1750061872093,0.68599892,107240.0,107230.0,6.2194825]
[1750061872295,0.69532379,107240.0,107230.0,6.2194825]
[1750061872552,0.69532379,107240.0,107230.0,6.21015719]
[1750061872740,0.69532379,107240.0,107230.0,6.2194825]
[1750061872974,0.69532371,107240.0,107230.0,6.22880772]
[1750061873423,1.12627124,107240.0,107230.0,6.22880772]
[1750061873666,1.12627124,107240.0,107230.0,6.20197524]
[1750061873896,1.30328454,107240.0,107230.0,6.21019727]
[1750061874108,1.30328454,107240.0,107230.0,6.21019743]
[1750061874555,1.30328454,107240.0,107230.0,6.20201541]
[1750061874766,1.30328454,107240.0,107230.0,6.21019752]
[1750061874973,1.30328454,107240.0,107230.0,6.219523]
[1750061875403,1.30328454,107240.0,107230.0,6.20201558]
[1750061875585,1.30328454,107240.0,107230.0,6.219523]
[1750061875807,1.11678697,107240.0,107230.0,6.23817371]
[1750061876027,1.10746218,107240.0,107230.0,6.23817327]
[1750061876244,1.12611184,107240.0,107230.0,6.20201532]
[1750061876473,1.12611184,107240.0,107230.0,6.21952249]
[1750061876818,1.12611184,107240.0,107230.0,6.21952241]
[1750061877029,1.12611184,107240.0,107230.0,6.20201532]
[1750061877906,1.12611184,107240.0,107230.0,6.19268992]
[1750061878484,0.69516431,107240.0,107230.0,6.19268992]
[1750061878694,1.12611184,107240.0,107230.0,6.19268992]
[1750061878911,1.31260941,107240.0,107230.0,6.19268992]
[1750061879741,1.31260941,107240.0,107230.0,6.18336444]
[1750061880267,1.31260941,107240.0,107230.0,6.17403887]
[1750061880468,1.30328497,107240.0,107230.0,6.18336461]
[1750061880623,1.30328497,107240.0,107230.0,5.99684965]
[1750061880881,1.30328497,107240.0,107230.0,5.96674965]
[1750061881094,1.35506036,107240.0,107230.0,5.77494391]
[1750061881246,1.29396036,107240.0,107230.0,5.92734391]
[1750061882330,1.29396036,107240.0,107230.0,5.93666965]
[1750061882468,1.29396036,107240.0,107230.0,5.95417716]
[1750061882673,1.29396036,107240.0,107230.0,5.94485142]
[1750061883303,1.38087733,107240.0,107230.0,5.77494391]
[1750061883515,1.54142655,107240.0,107230.0,5.77494391]
[1750061883726,1.99472908,107240.0,107230.0,5.77494391]
[1750061883923,2.0436985,107240.0,107230.0,5.77494391]
[1750061884096,2.07445339,107240.0,107230.0,5.77494391]
[1750061884319,2.08100959,107240.0,107230.0,5.77494391]
[1750061884534,2.23368955,107240.0,107230.0,5.77494391]
[1750061884734,2.22713339,107240.0,107230.0,5.77494391]
[1750061885566,2.27713339,107240.0,107230.0,5.77494391]
[1750061886690,2.26785724,107240.0,107230.0,5.77494391]
[1750061887334,2.30516839,107240.0,107230.0,5.77494391]
[1750061887732,2.26785724,107240.0,107230.0,5.72923391]
[1750061887937,2.26785724,107240.0,107230.0,5.68253624]
[1750061888142,2.25839164,107240.0,107230.0,5.68253624]
[1750061889623,2.25839164,107240.0,107230.0,5.27346856]
[1750061889624,2.23051933,107240.0,107230.0,5.27346856]
[1750061889827,2.26491421,107240.0,107230.0,5.27346856]
[1750061890044,2.26491417,107240.0,107230.0,5.26946856]
[1750061890249,2.26491407,107240.0,107230.0,5.26946856]
[1750061890401,2.26691407,107240.0,107230.0,5.26946856]
[1750061890607,2.26691403,107240.0,107230.0,5.26946856]
[1750061891185,2.27094688,107240.0,107230.0,5.26946856]
[1750061891394,2.27094662,107240.0,107230.0,5.26946856]
[1750061891590,2.2709466,107240.0,107230.0,5.26946856]
[1750061892267,2.5644466,107240.0,107230.0,5.26946856]
[1750061892497,2.72225933,107240.0,107230.0,5.26946856]
[1750061892709,2.7288145,107240.0,107230.0,5.26946856]
[1750061892910,2.72881451,107240.0,107230.0,5.26946856]
[1750061893128,2.72881449,107240.0,107230.0,5.26946856]
[1750061893342,2.72225933,107240.0,107230.0,5.26946856]
[1750061893984,2.72881446,107240.0,107230.0,5.26946856]
[1750061894187,2.72225933,107240.0,107230.0,5.26946856]
[1750061894786,2.7288145,107240.0,107230.0,5.26946856]
[1750061894998,2.72225933,107240.0,107230.0,5.26946856]
[1750061895449,2.53657447,107240.0,107230.0,5.26946856]
[1750061895650,2.29786693,107240.0,107230.0,5.26946856]
[1750061895850,2.29786694,107240.0,107230.0,5.26946856]
[1750061896188,2.2913118,107240.0,107230.0,5.26946856]
[1750061896812,2.29786573,107240.0,107230.0,5.26946856]
[1750061897037,2.29786555,107240.0,107230.0,5.26946856]
[1750061897244,2.29786557,107240.0,107230.0,5.26946856]
[1750061897512,2.2913118,107240.0,107230.0,5.26946856]
[1750061897717,2.29786557,107240.0,107230.0,5.26946856]
[1750061897883,2.2913118,107240.0,107230.0,5.26946856]
[1750061898103,2.29786567,107240.0,107230.0,5.26946856]
[1750061898475,2.2913118,107240.0,107230.0,5.26946856]
[1750061898684,2.29782566,107240.0,107230.0,5.26946856]
[1750061899048,2.29782567,107240.0,107230.0,5.26946856]
[1750061899264,2.2912718,107240.0,107230.0,5.26946856]
[1750061899514,2.325698,107240.0,107230.0,5.26946856]
[1750061899790,2.31914411,107240.0,107230.0,5.26946856]
[1750061900218,2.36300911,107240.0,107230.0,5.26946856]
[1750061900710,2.36300912,107240.0,107230.0,5.26946856]
[1750061900918,2.79395683,107240.0,107230.0,5.26946856]
[1750061901127,2.76608446,107240.0,107230.0,5.26946856]
[1750061901533,2.82690667,107240.0,107230.0,5.26946856]
[1750061901744,2.82035273,107240.0,107230.0,5.26946856]
[1750061901903,2.82690668,107240.0,107230.0,5.26946856]
[1750061902312,2.82690675,107240.0,107230.0,5.26946856]
[1750061902889,2.8269068,107240.0,107230.0,5.26946856]
[1750061903094,2.82690677,107240.0,107230.0,5.26946856]
[1750061903291,2.82690642,107240.0,107230.0,5.26946856]
[1750061903608,2.82690572,107240.0,107230.0,5.26946856]
[1750061903815,2.82035273,107240.0,107230.0,5.26946856]
[1750061903994,2.82690382,107240.0,107230.0,5.26946856]
[1750061904456,2.77095654,107240.0,107230.0,5.26946856]
[1750061904661,2.82690369,107240.0,107230.0,5.26946856]
[1750061904836,2.82690311,107240.0,107230.0,5.26946856]
[1750061905085,2.82690254,107240.0,107230.0,5.26946856]
[1750061905302,2.82690239,107240.0,107230.0,5.26946856]
[1750061905511,2.82687826,107240.0,107230.0,5.26946856]
[1750061905720,2.82687825,107240.0,107230.0,5.26946856]
[1750061906212,2.77093125,107240.0,107230.0,5.26946856]
[1750061906419,2.77093115,107240.0,107230.0,5.26459856]
[1750061906626,2.76440558,107240.0,107230.0,5.26459856]
[1750061906841,2.7660558,107240.0,107230.0,5.26459856]
[1750061907860,2.75953048,107240.0,107230.0,5.26459856]
[1750061908675,2.81547763,107240.0,107230.0,5.26459856]
[1750061908895,2.82200318,107240.0,107230.0,5.26459856]
[1750061909384,2.82200793,107240.0,107230.0,5.26459856]
[1750061909613,2.82200781,107240.0,107230.0,5.26459856]
[1750061909828,2.82200784,107240.0,107230.0,5.26459856]
[1750061910042,2.82200783,107240.0,107230.0,5.26459856]
[1750061910488,2.82200786,107240.0,107230.0,5.26459856]
[1750061911142,2.82200798,107240.0,107230.0,5.26459856]
[1750061911822,2.78453676,107240.0,107230.0,5.26459856]
[1750061912030,2.78453677,107240.0,107230.0,5.26459856]
[1750061912247,2.77800648,107240.0,107230.0,5.26459856]
[1750061912492,2.78453676,107240.0,107230.0,5.26459856]
[1750061912703,2.78453678,107240.0,107230.0,5.26459856]
[1750061912909,2.59249666,107240.0,107230.0,5.26459856]
[1750061913126,2.784539,107240.0,107230.0,5.26459856]
[1750061913338,2.78453899,107240.0,107230.0,5.26459856]
[1750061913774,2.77800648,107240.0,107230.0,5.26459856]
[1750061914194,2.78453898,107240.0,107230.0,5.26459856]
[1750061914400,2.77800648,107240.0,107230.0,5.26459856]
[1750061914636,2.78453898,107240.0,107230.0,5.26459856]
[1750061914849,2.78455576,107240.0,107230.0,5.26459856]
[1750061915107,2.78455573,107240.0,107230.0,5.26459856]
[1750061915328,2.77800648,107240.0,107230.0,5.26459856]
[1750061915543,2.78455573,107240.0,107230.0,5.26459856]
[1750061915752,2.77800648,107240.0,107230.0,5.26459856]
[1750061915955,2.78455575,107240.0,107230.0,5.26459856]
[1750061916163,2.77800648,107240.0,107230.0,5.26459856]
[1750061916579,2.80320479,107240.0,107230.0,5.26459856]
[1750061916787,2.79665554,107240.0,107230.0,5.26459856]
[1750061917210,2.80320479,107240.0,107230.0,5.26459856]
[1750061917837,2.80320478,107240.0,107230.0,5.26459856]
[1750061918033,2.80320482,107240.0,107230.0,5.26459856]
[1750061918464,2.80320484,107240.0,107230.0,5.26459856]
[1750061918674,2.32357848,107240.0,107230.0,4.79948322]
[1750061918927,2.34218805,107240.0,107230.0,4.79948322]
[1750061919147,2.3487369,107240.0,107230.0,4.79948322]
[1750061919374,7.93964458,107240.0,107230.0,1.40398239]
[1750061919591,7.9428174,107240.0,107230.0,1.31781777]
[1750061919803,7.94934006,107240.0,107230.0,1.31781777]
[1750061920063,7.94279222,107240.0,107230.0,1.31781777]
[1750061920282,7.91014997,107240.0,107230.0,1.31781777]
[1750061920497,7.93514997,107240.0,107230.0,0.90596707]
[1750061920714,7.94514942,107240.0,107230.0,0.89524182]
[1750061920930,7.99443084,107240.0,107230.0,0.89524182]
[1750061921143,7.93860212,107240.0,107230.0,0.48617414]
[1750061921585,7.94514927,107240.0,107230.0,0.48617414]
[1750061921798,7.94114927,107240.0,107230.0,0.48617414]
[1750061922010,7.93460212,107240.0,107230.0,0.48617414]
[1750061922257,7.75626483,107240.0,107230.0,0.26663741]
[1750061922487,7.93247832,107240.0,107230.0,0.26663741]
[1750061922741,7.93247838,107240.0,107230.0,0.26663741]
[1750061922956,7.91012339,107240.0,107230.0,0.26663741]
[1750061923347,7.9101235,107240.0,107230.0,0.26663741]
[1750061923590,7.71129617,107240.0,107230.0,0.26663741]
[1750061923775,7.75528617,107240.0,107230.0,0.26663741]
[1750061924031,0.71298138,107230.0,107220.0,0.00570276]
[1750061924240,0.60976411,107200.0,107190.0,0.06570831]
[1750061924452,1.76668837,107200.0,107190.0,0.06570831]
[1750061924659,1.76014093,107200.0,107190.0,0.06570831]
[1750061924865,1.78818993,107200.0,107190.0,0.06570831]
[1750061925322,1.78818993,107200.0,107190.0,0.06617974]
[1750061925535,1.83946754,107200.0,107190.0,0.03347974]
[1750061925739,1.4150673,107200.0,107190.0,0.03347974]
[1750061925960,1.41506727,107200.0,107190.0,0.03347974]
[1750061926256,1.41052001,107200.0,107190.0,0.03347974]
[1750061926576,1.41706717,107200.0,107190.0,0.03347974]
[1750061926776,1.41706722,107200.0,107190.0,0.03347974]
[1750061927019,1.41706726,107200.0,107190.0,0.03347974]
[1750061927236,1.41052001,107200.0,107190.0,0.03347974]
[1750061927641,1.41706762,107200.0,107190.0,0.03347974]
[1750061928062,1.4170662,107200.0,107190.0,0.03347974]
[1750061928273,1.41052001,107200.0,107190.0,0.03347974]
[1750061928414,1.41706544,107200.0,107190.0,0.03347974]
[1750061928615,1.41052001,107200.0,107190.0,0.03347974]
[1750061929074,1.41706507,107200.0,107190.0,0.03347974]
[1750061929264,1.41706506,107200.0,107190.0,0.03347974]
[1750061929692,1.41706422,107200.0,107190.0,0.03347974]
[1750061929877,1.41706417,107200.0,107190.0,0.03347974]
[1750061930541,1.41052001,107200.0,107190.0,0.03347974]
[1750061930708,1.41706417,107200.0,107190.0,0.03347974]
[1750061931327,1.41052001,107200.0,107190.0,0.03347974]
[1750061931520,1.41706417,107200.0,107190.0,0.03347974]
[1750061931767,1.41706417,107200.0,107190.0,0.00117974]
[1750061931912,1.41052001,107200.0,107190.0,0.00117974]
[1750061932107,1.41706417,107200.0,107190.0,0.00117974]
[1750061932554,1.41706413,107200.0,107190.0,0.00117974]
[1750061932768,1.47906385,107200.0,107190.0,0.00117974]
[1750061932962,1.47906386,107200.0,107190.0,0.00117974]
[1750061933227,1.47906382,107200.0,107190.0,0.00117974]
[1750061933522,1.47906383,107200.0,107190.0,0.00117974]
[1750061933692,1.96476383,107200.0,107190.0,0.00117974]
[1750061934049,1.96476393,107200.0,107190.0,0.00117974]
[1750061934256,7.0095405,107200.0,107190.0,0.00117974]
[1750061934463,0.99076908,107170.0,107160.0,0.15700443]
[1750061934663,1.38182334,107170.0,107160.0,0.15705154]
[1750061934859,1.38182303,107170.0,107160.0,0.15705154]
[1750061935064,1.38182302,107170.0,107160.0,0.15705154]
[1750061935714,1.40333406,107170.0,107160.0,0.15805154]
[1750061935864,1.40333406,107170.0,107160.0,0.16105154]
[1750061937874,0.81982653,107170.0,107160.0,0.16105154]
[1750061938064,0.78026653,107170.0,107160.0,0.16105154]
[1750061938282,0.76572568,107170.0,107160.0,0.59199907]
[1750061938524,0.66957646,107170.0,107160.0,0.59199907]
[1750061938723,0.64152246,107170.0,107160.0,0.59199907]
[1750061939185,0.64152246,107170.0,107160.0,0.16105154]